bitfinex-derivatives/quotes_ETHF0:USTF0_20250905
["timestamp","ask_amount","ask_price","bid_price","bid_amount"]
[1757087307849,3.1431,4288.8,4288.7,1.1965]
[1757087308241,3.1431,4288.8,4288.7,0.244]
[1757087308547,0.8988,4288.2,4288.1,0.244]
[1757087308743,0.8988,4288.2,4288.1,3.5448]
[1757087309049,2.212,4288.2,4288.1,3.5448]
[1757087309641,0.5225,4288.5,4288.1,3.5448]
[1757087309955,2.212,4288.4,4288.3,3.3008]
[1757087310342,3.1431,4288.4,4287.8,3.2078]
[1757087310650,3.1431,4288.4,4287.9,1.6695]
[1757087310951,2.212,4288.0,4287.9,3.5448]
[1757087311248,1.8357,4288.5,4287.9,3.5448]
[1757087311637,1.8357,4288.5,4287.9,2.1193]
[1757087311844,1.8357,4288.5,4288.4,3.3008]
[1757087311845,2.212,4288.5,4288.4,3.3008]
[1757087312046,3.6656,4288.5,4288.4,0.9525]
[1757087312843,3.6656,4288.5,4288.2,0.244]
[1757087314252,2.3524,4288.5,4288.2,0.244]
[1757087314448,2.212,4288.4,4288.3,0.9525]
[1757087314748,3.1431,4288.4,4288.3,0.9525]
[1757087314947,3.1431,4288.4,4288.2,0.244]
[1757087315151,1.8299,4288.4,4288.2,0.244]
[1757087315348,1.3132,4288.3,4288.2,0.244]
[1757087315554,3.1431,4288.3,4288.2,0.244]
[1757087315749,3.1431,4288.3,4288.2,3.5448]
[1757087316056,3.1431,4288.3,4288.2,1.1965]
[1757087317151,0.8988,4288.3,4288.2,3.5448]
[1757087317356,1.3132,4288.9,4288.3,1.4255]
[1757087317658,3.1431,4288.9,4288.8,1.8753]
[1757087318046,3.1431,4288.9,4288.5,0.244]
[1757087318649,3.7733,4289.0,4288.5,1.6695]
[1757087318846,3.1431,4288.6,4288.5,2.622]
[1757087319042,3.1431,4288.6,4288.5,3.5448]
[1757087319847,0.8988,4288.6,4288.5,3.5448]
[1757087320047,2.212,4288.9,4288.8,1.8753]
[1757087320249,2.212,4288.9,4288.8,3.3008]
[1757087321057,2.212,4288.9,4288.8,3.5448]
[1757087321356,3.1431,4288.9,4288.8,3.5448]
[1757087321757,1.3132,4288.8,4288.7,0.244]
[1757087321954,3.1431,4288.8,4288.7,0.244]
[1757087322154,0.8988,4288.8,4288.7,3.5448]
[1757087322648,2.212,4288.8,4288.7,3.5448]
[1757087322852,3.1431,4288.8,4288.7,0.244]
[1757087323057,3.6656,4288.5,4288.4,3.2078]
[1757087323257,3.6656,4288.5,4288.3,0.244]
[1757087324162,2.3524,4288.5,4288.3,0.244]
[1757087324361,3.1431,4288.4,4288.3,1.1965]
[1757087324656,3.1431,4288.4,4288.3,3.5448]
[1757087325156,1.3132,4288.9,4288.4,1.4255]
[1757087325358,0.244,4288.9,4288.3,0.244]
[1757087325661,0.5225,4288.5,4288.3,0.244]
[1757087325861,1.8299,4288.4,4288.3,0.244]
[1757087326162,2.3524,4288.0,4287.9,0.244]
[1757087326356,3.6656,4288.0,4287.9,1.1965]
[1757087326663,3.6656,4288.0,4287.9,3.5448]
[1757087327066,3.1431,4288.0,4287.9,3.5448]
[1757087328060,1.3132,4288.4,4287.9,3.5448]
[1757087328249,3.0681,4288.4,4288.3,1.8395]
[1757087328454,3.0681,4288.4,4288.3,3.1167]
[1757087329062,3.7303,4289.0,4288.3,6.3245]
[1757087329063,1.3419,4288.9,4288.3,6.3245]
[1757087329960,5.0722,4289.0,4288.3,5.0473]
[1757087330264,0.8664,4289.5,4289.4,3.1167]
[1757087330466,3.0681,4289.9,4289.8,1.8395]
[1757087330767,3.0681,4289.9,4289.8,0.9307]
[1757087330970,1.7262,4289.9,4289.7,0.244]
[1757087331267,0.5349,4290.0,4289.7,0.244]
[1757087331268,3.0681,4289.8,4289.7,0.244]
[1757087331770,3.0681,4289.8,4289.7,3.3607]
[1757087332060,2.2083,4290.3,4290.2,3.1167]
[1757087332660,0.8664,4290.4,4290.3,1.2772]
[1757087332866,0.8664,4290.4,4290.3,3.1167]
[1757087333066,1.3419,4290.7,4290.4,1.2772]
[1757087333269,2.2083,4290.7,4290.6,6.3245]
[1757087333463,2.2083,4290.7,4290.6,3.3607]
[1757087333665,3.0681,4290.7,4290.6,2.0835]
[1757087334156,3.7427,4291.0,4290.6,2.0835]
[1757087334357,3.0681,4290.8,4290.7,0.9307]
[1757087334870,3.0681,4290.8,4290.6,0.244]
[1757087335871,1.7262,4290.8,4290.6,0.244]
[1757087336071,3.0681,4290.7,4290.6,0.244]
[1757087336277,3.0681,4290.7,4290.0,5.0184]
[1757087336572,3.0681,4290.7,4290.1,0.244]
[1757087337257,3.0681,4290.7,4290.6,0.9307]
[1757087337458,3.0681,4290.7,4290.6,3.1167]
[1757087337662,32.42475809,4292.2,4290.6,3.1167]
[1757087337663,1.3419,4291.2,4290.7,1.2772]
[1757087337975,2.2083,4291.3,4291.2,3.1167]
[1757087338160,2.2083,4291.9,4291.8,3.1167]
[1757087338367,2.2083,4291.9,4291.8,3.3607]
[1757087338565,3.0681,4291.9,4291.8,2.0835]
[1757087339162,2.2083,4291.9,4291.8,3.3607]
[1757087339665,1.3419,4292.3,4291.8,3.3607]
[1757087339870,3.0681,4292.4,4292.3,0.9307]
[1757087341165,1.3419,4292.3,4292.1,0.244]
[1757087341473,3.0681,4292.3,4292.2,3.1167]
[1757087341773,0.5349,4293.0,4292.3,1.2772]
[1757087341774,1.8768,4293.0,4292.3,1.2772]
[1757087342072,1.8768,4293.0,4292.4,0.244]
[1757087342269,0.8664,4293.0,4292.9,3.1167]
[1757087342472,1.3419,4293.4,4293.3,1.8395]
[1757087342676,1.3419,4293.4,4293.3,3.3607]
[1757087343067,1.3419,4293.9,4293.3,3.3607]
[1757087343471,3.2078,4294.3,4293.4,1.2772]
[1757087343666,3.2078,4294.3,4293.3,0.244]
[1757087343667,0.5349,4294.5,4293.8,1.2772]
[1757087343866,1.3419,4294.4,4293.7,3.2078]
[1757087344072,1.3419,4294.4,4293.9,0.244]
[1757087344376,1.8768,4294.5,4294.0,1.2772]
[1757087344573,0.5349,4294.5,4293.9,0.244]
[1757087344770,1.8768,4294.5,4294.0,1.2772]
[1757087344966,1.3419,4294.5,4294.0,0.5334]
[1757087345272,1.3419,4294.7,4294.1,1.2772]
[1757087345474,1.3419,4294.9,4294.2,0.244]
[1757087345972,1.3419,4294.9,4294.2,1.5212]
[1757087347879,1.3419,4294.9,4294.2,1.2772]
[1757087348176,3.2078,4295.3,4294.2,3.1167]
[1757087348177,2.2083,4294.3,4294.2,3.1167]
[1757087348381,2.2083,4294.3,4294.2,3.3607]
[1757087349171,0.8664,4294.3,4294.2,3.3607]
[1757087349781,3.2078,4295.2,4294.3,1.2772]
[1757087349782,1.3419,4294.9,4294.3,1.2772]
[1757087350186,3.0681,4294.9,4294.8,0.9307]
[1757087350381,1.3419,4294.8,4294.6,0.244]
[1757087350580,3.0681,4294.8,4294.7,0.9307]
[1757087350983,3.0681,4294.8,4294.6,0.244]
[1757087351187,3.0681,4294.7,4294.6,0.244]
[1757087352086,3.0681,4294.7,4294.6,1.1747]
[1757087352385,3.0681,4294.7,4294.6,0.244]
[1757087352976,3.0681,4294.7,4294.6,2.0835]
[1757087353182,0.5349,4295.5,4294.9,1.2772]
[1757087353388,3.603,4295.5,4295.4,0.9307]
[1757087353784,3.2078,4296.2,4295.8,1.8395]
[1757087353988,2.2611,4296.0,4295.9,0.9307]
[1757087354291,2.2611,4296.0,4295.8,0.244]
[1757087354489,1.3419,4295.9,4295.8,0.244]
[1757087354685,3.0681,4295.9,4295.8,0.244]
[1757087355187,3.603,4295.5,4295.4,0.244]
[1757087355380,0.8598,4295.2,4295.1,0.244]
[1757087355580,1.7262,4295.2,4295.1,0.244]
[1757087355995,3.0681,4295.2,4295.1,0.244]
[1757087356178,3.0681,4295.2,4295.1,2.0835]
[1757087356685,3.0681,4295.2,4295.1,1.1747]
[1757087357290,3.0681,4295.2,4295.1,0.244]
[1757087358092,3.0681,4295.2,4294.5,3.2078]
[1757087358390,1.3873,4294.6,4294.5,3.2078]
[1757087358590,3.1225,4294.6,4294.5,3.4518]
[1757087359095,1.3873,4294.9,4294.5,5.2341]
[1757087359394,0.8503,4294.9,4294.8,3.1061]
[1757087359977,3.1225,4294.9,4294.8,3.1061]
[1757087361588,0.8503,4294.8,4294.7,0.8967]
[1757087361791,1.3873,4295.1,4294.8,1.3238]
[1757087361984,1.3873,4295.1,4294.5,3.9851]
[1757087361985,3.7427,4295.5,4295.0,3.6394]
[1757087362189,1.3873,4295.5,4295.4,3.1061]
[1757087362387,5.13,4296.0,4295.9,1.7823]
[1757087362588,5.9803,4296.0,4295.9,3.1061]
[1757087362788,5.4454,4296.0,4295.9,3.1061]
[1757087362987,3.2078,4296.0,4295.9,3.1061]
[1757087363189,6.8552,4296.0,4295.8,0.244]
[1757087363496,6.8552,4296.0,4295.1,3.2078]
[1757087363497,0.8503,4295.2,4295.1,6.3139]
[1757087363692,1.3873,4295.5,4295.1,6.5579]
[1757087363887,0.8503,4295.2,4295.1,6.5579]
[1757087364093,2.2376,4295.2,4295.1,6.5579]
[1757087364295,2.2376,4295.5,4295.4,1.7823]
[1757087364490,2.2376,4295.5,4295.4,3.3501]
[1757087364695,3.7327,4296.0,4295.4,3.3501]
[1757087365086,0.8503,4295.5,4295.4,3.3501]
[1757087365282,3.2078,4296.0,4295.9,1.7823]
[1757087365484,3.2078,4296.0,4295.9,3.1061]
[1757087365700,1.3873,4296.3,4296.2,1.7823]
[1757087365891,3.1225,4296.3,4296.2,3.3501]
[1757087366785,3.1225,4296.3,4296.2,1.1407]
[1757087367090,3.1225,4296.3,4296.2,0.244]
[1757087370197,1.7352,4295.2,4295.1,0.8967]
[1757087370496,3.1225,4295.2,4295.1,3.3501]
[1757087370993,3.1225,4295.5,4295.4,3.1061]
[1757087371198,3.6474,4295.5,4295.4,1.1407]
[1757087372792,3.6474,4295.5,4295.4,0.244]
[1757087373095,3.1225,4295.1,4295.0,4.1045]
[1757087373293,3.1225,4295.1,4295.0,4.3485]
[1757087373696,3.1225,4295.1,4295.0,6.5579]
[1757087373895,3.1225,4295.1,4295.0,5.2341]
[1757087374197,3.1225,4295.1,4295.0,1.1407]
[1757087374198,3.68254698,4295.1,4295.0,1.1407]
[1757087374396,3.1225,4295.1,4295.0,1.1407]
[1757087374592,3.68261015,4295.1,4295.0,1.1407]
[1757087374790,3.1225,4295.1,4295.0,1.1407]
[1757087374998,4.0581,4295.4,4295.3,3.1061]
[1757087375193,4.61819665,4295.4,4295.3,3.3501]
[1757087375395,6.00549665,4295.4,4295.3,3.3501]
[1757087375593,6.89039665,4295.4,4295.3,3.3501]
[1757087375789,6.89039665,4295.4,4295.3,2.0263]
[1757087375994,6.89039665,4295.4,4295.3,1.1407]
[1757087376904,6.89039665,4295.4,4295.3,0.244]
[1757087377698,3.68259665,4295.4,4295.3,0.244]
[1757087378896,7.68259665,4295.4,4295.3,0.244]
[1757087379103,1.7352,4294.5,4294.4,4.1045]
[1757087379307,3.1225,4294.5,4294.4,4.2595]
[1757087379607,3.6474,4294.5,4294.4,6.4689]
[1757087379808,3.1225,4294.5,4294.4,6.4689]
[1757087380108,1.3873,4295.3,4294.6,1.3238]
[1757087380303,3.68303461,4295.2,4295.1,0.8967]
[1757087381804,3.68303461,4295.2,4294.8,0.244]
[1757087381805,3.1225,4294.9,4294.8,0.244]
[1757087385806,3.6474,4294.5,4294.4,3.4508]
[1757087386205,3.6474,4294.5,4294.4,4.3475]
[1757087387709,3.6474,4294.5,4294.4,0.243]
[1757087387906,3.6474,4294.0,4293.9,4.1045]
[1757087388107,3.6474,4293.5,4293.4,4.1045]
[1757087388306,3.6474,4293.5,4293.4,4.3475]
[1757087390711,2.291,4294.0,4293.9,1.7492]
[1757087390911,3.2078,4294.2,4293.9,1.9922]
[1757087391115,4.0937,4294.2,4294.1,3.0839]
[1757087391610,5.3404,4294.2,4294.1,3.0839]
[1757087392404,0.8859,4294.2,4294.1,3.0839]
[1757087392604,1.2467,4294.5,4294.2,1.3347]
[1757087392809,3.2078,4294.7,4294.5,1.3347]
[1757087393010,5.3404,4294.7,4294.6,3.3269]
[1757087393807,1.2467,4295.1,4294.7,1.3347]
[1757087394117,2.1326,4295.1,4295.0,3.0839]
[1757087394318,2.1326,4295.1,4295.0,3.3269]
[1757087394512,3.0128,4295.1,4295.0,3.3269]
[1757087394816,3.0128,4295.1,4295.0,6.5347]
[1757087396219,0.8859,4295.1,4295.0,6.5347]
[1757087397810,1.2467,4295.4,4295.0,7.0226]
[1757087398012,2.1326,4295.4,4295.3,1.7492]
[1757087398317,2.1326,4295.4,4295.3,3.3269]
[1757087398509,3.0128,4295.4,4295.3,0.243]
[1757087398915,3.0128,4295.4,4295.3,1.0835]
[1757087400408,3.0128,4295.4,4295.3,0.8405]
[1757087400615,1.7661,4295.1,4295.0,3.2078]
[1757087400807,3.0128,4295.1,4295.0,4.2913]
[1757087401006,3.0128,4295.1,4295.0,5.2]
[1757087401513,3.0128,4295.1,4295.0,3.4508]
[1757087401817,1.2467,4294.6,4294.5,3.4508]
[1757087402115,3.0128,4294.6,4294.5,3.4508]
[1757087402322,3.0128,4294.6,4294.5,0.243]
[1757087402719,3.0128,4294.6,4293.9,4.5425]
[1757087402720,3.0128,4294.1,4293.9,3.2078]
[1757087403018,3.0128,4294.1,4294.0,0.243]
[1757087403222,3.0128,4294.1,4294.0,3.3269]
[1757087403419,0.8859,4294.8,4294.7,1.7492]
[1757087403621,2.1326,4295.0,4294.9,3.0839]
[1757087403922,1.7661,4295.1,4295.0,1.3347]
[1757087404117,3.0128,4295.1,4295.0,3.0839]
[1757087404918,0.243,4295.9,4295.0,3.5718]
[1757087405227,3.0128,4295.2,4295.1,1.9922]
[1757087405414,2.1326,4295.9,4295.8,0.8405]
[1757087405713,2.1326,4295.9,4294.9,3.2078]
[1757087405714,3.0128,4295.9,4295.5,0.243]
[1757087405914,3.539,4295.0,4294.9,4.0483]
[1757087406120,3.539,4295.0,4294.9,3.4508]
[1757087406321,3.539,4295.0,4294.9,4.2913]
[1757087406522,3.539,4295.0,4294.9,1.0835]
[1757087406720,3.539,4295.0,4294.9,0.243]
[1757087407322,3.539,4295.0,4294.5,2.97160256]
[1757087407521,2.1269,4294.9,4294.6,0.243]
[1757087407723,3.539,4294.5,4294.4,1.63690256]
[1757087408019,1.2467,4294.4,4294.3,3.2078]
[1757087408221,2.2923,4294.5,4293.8,1.3347]
[1757087408222,2.2923,4294.0,4293.8,3.2078]
[1757087408526,2.2923,4294.0,4293.9,1.0835]
[1757087408925,3.539,4294.0,4293.9,1.0835]
[1757087409426,3.539,4294.0,4293.9,0.243]
[1757087409720,3.0128,4293.9,4293.8,3.2078]
[1757087410923,3.0128,4293.9,4293.8,4.957]
[1757087411130,3.0128,4293.9,4293.8,3.2078]
[1757087412226,0.5262,4293.5,4293.3,1.63690256]
[1757087412426,0.5262,4293.5,4292.7,3.2078]
[1757087412427,1.2467,4293.3,4293.1,1.63690256]
[1757087412627,3.977,4293.5,4292.0,2.06195945]
[1757087412628,1.7661,4292.1,4292.0,2.06195945]
[1757087412823,1.2467,4292.9,4292.1,1.3347]
[1757087412824,3.2078,4292.9,4292.1,1.3347]
[1757087413023,1.2467,4293.2,4292.7,1.7492]
[1757087413224,2.1326,4293.2,4293.1,0.8405]
[1757087413528,0.8859,4293.2,4293.1,3.0839]
[1757087414122,3.2078,4293.4,4293.1,3.0839]
[1757087414319,3.2078,4293.4,4293.3,1.7492]
[1757087414524,4.0937,4293.4,4293.3,3.0839]
[1757087414729,0.243,4294.0,4293.4,1.3347]
[1757087414931,3.2078,4294.4,4293.6,3.0839]
[1757087415234,4.3367,4294.4,4294.3,2.1752]
[1757087415531,3.2078,4294.9,4294.3,1.5777]
[1757087415831,3.2078,4294.9,4294.5,0.4879]
[1757087416030,4.4545,4294.9,4294.6,0.243]
[1757087416332,3.2078,4294.9,4294.7,1.3347]
[1757087416533,1.2467,4294.8,4294.7,1.3347]
[1757087416826,3.2078,4294.9,4294.3,1.3347]
[1757087417030,1.2467,4294.8,4294.4,0.243]
[1757087417231,1.2467,4294.6,4294.4,0.243]
[1757087417429,3.2078,4294.9,4294.4,0.243]
[1757087417635,3.2078,4294.9,4294.5,0.4879]
[1757087417835,3.2078,4294.9,4294.6,1.3347]
[1757087418141,3.2078,4294.9,4294.8,1.3347]
[1757087419227,1.2887,4295.4,4294.8,1.3347]
[1757087420638,1.2887,4296.0,4295.5,0.4954]
[1757087420838,1.2887,4295.9,4295.5,1.7457]
[1757087421031,1.2887,4295.9,4295.6,1.2503]
[1757087421229,3.4508,4296.1,4295.6,1.2503]
[1757087421435,3.2078,4296.1,4296.0,0.4954]
[1757087421627,3.2078,4296.6,4296.0,0.4954]
[1757087421833,3.2078,4296.6,4296.1,1.2503]
[1757087422037,3.2078,4296.6,4296.0,0.7384]
[1757087422238,3.2078,4296.6,4296.1,1.2503]
[1757087422634,3.2078,4296.6,4296.0,0.7384]
[1757087422939,3.2078,4296.6,4296.1,1.2503]
[1757087423137,3.2078,4296.6,4296.0,0.7384]
[1757087424036,3.2078,4296.6,4296.1,1.2503]
[1757087424226,3.2078,4296.6,4296.0,0.7384]
[1757087424732,4.4965,4296.6,4296.0,1.9887]
[1757087425334,1.2887,4297.5,4296.3,3.2078]
[1757087425535,1.2887,4297.5,4296.6,1.2503]
[1757087425747,1.5517,4297.5,4296.6,1.2503]
[1757087426347,3.2078,4297.0,4296.5,0.4954]
[1757087426550,4.4965,4297.0,4296.5,0.4954]
[1757087426843,1.2887,4296.9,4296.5,0.4954]
[1757087427645,1.2887,4296.9,4296.6,1.2503]
[1757087428043,1.2887,4296.9,4296.5,0.4954]
[1757087428347,1.2887,4296.9,4296.6,1.2503]
[1757087428735,1.2887,4296.9,4296.5,0.4954]
[1757087428940,3.2078,4297.0,4296.6,1.2503]
[1757087429436,1.2887,4297.4,4296.6,1.2503]
[1757087430944,4.4965,4297.4,4296.6,1.2503]
[1757087431543,0.843,4296.7,4296.6,2.9406]
[1757087431850,1.2887,4297.1,4296.6,1.6903]
[1757087432053,3.2078,4297.4,4296.7,1.2503]
[1757087432347,0.843,4296.8,4296.7,2.9406]
[1757087432552,1.2887,4296.7,4296.5,1.2503]
[1757087432749,2.9402,4296.6,4296.5,2.0587]
[1757087433253,1.6515,4296.6,4296.4,0.243]
[1757087433442,2.9402,4296.5,4296.4,0.243]
[1757087433647,2.9402,4296.5,4296.4,2.3017]
[1757087433951,1.6515,4296.5,4296.4,3.1836]
[1757087435652,2.9402,4296.5,4296.4,2.3017]
[1757087435846,1.6515,4295.7,4295.6,0.8084]
[1757087436053,1.6515,4295.7,4295.6,2.3017]
[1757087436452,2.9402,4295.7,4295.6,1.4933]
[1757087436850,2.9402,4295.7,4295.6,0.243]
[1757087437347,2.9402,4295.1,4294.8,3.2078]
[1757087437548,1.2887,4295.0,4294.9,1.2503]
[1757087437745,2.9402,4295.0,4294.9,1.2503]
[1757087437949,1.2887,4294.9,4294.8,3.4508]
[1757087438157,1.6515,4294.9,4294.8,5.5095]
[1757087438354,1.6515,4294.9,4294.8,5.2665]
[1757087438949,2.9402,4294.9,4294.8,2.0587]
[1757087439146,1.2887,4294.8,4294.7,1.2503]
[1757087439356,2.9402,4294.8,4294.7,2.0587]
[1757087439754,1.2887,4294.7,4294.6,0.243]
[1757087440059,2.9402,4294.3,4294.1,1.4933]
[1757087440255,2.9402,4293.6,4293.1,35.3368]
[1757087440454,2.9402,4293.6,4293.2,1.9333]
[1757087440455,1.6515,4293.3,4293.2,1.9333]
[1757087440953,1.6515,4293.3,4292.6,3.2078]
[1757087440954,5.52162001,4293.3,4292.7,1.2503]
[1757087441148,1.2887,4292.7,4292.0,1.7457]
[1757087441555,1.2887,4292.7,4292.0,1.2503]
[1757087442252,0.243,4292.6,4291.8,3.4508]
[1757087442446,1.2887,4292.4,4291.8,3.4508]
[1757087443257,1.2887,4291.9,4291.0,0.4954]
[1757087443560,1.2887,4291.9,4290.6,3.2078]
[1757087443561,1.2887,4291.5,4290.9,0.243]
[1757087444450,1.2887,4291.5,4291.0,0.4954]
[1757087444646,4.4965,4291.6,4291.0,1.7457]
[1757087444855,4.4965,4291.6,4291.0,1.2503]
[1757087445256,0.243,4291.5,4290.6,3.2078]
[1757087445462,1.2887,4291.4,4290.7,1.2503]
[1757087447155,0.243,4291.3,4290.7,1.2503]
[1757087448055,1.5518,4291.0,4290.3,1.2503]
[1757087448262,1.2887,4291.0,4290.3,1.2503]
[1757087449069,3.2078,4291.1,4290.5,0.4972]
[1757087449267,0.243,4291.3,4290.6,1.315]
[1757087449758,3.2078,4291.7,4290.8,1.315]
[1757087451157,1.42713,4291.6,4290.8,1.315]
[1757087451563,1.1941,4291.6,4290.8,1.315]
[1757087451866,1.1941,4291.4,4290.8,1.315]
[1757087452363,1.1941,4291.4,4290.8,2.1248]
[1757087452364,0.8538,4290.9,4290.8,2.1248]
[1757087452560,0.8538,4290.9,4290.8,2.9675]
[1757087452857,0.8538,4290.9,4290.5,0.7402]
[1757087452858,1.1941,4290.8,4290.5,1.558]
[1757087453060,2.8578,4290.6,4290.5,1.558]
[1757087453269,0.477,4290.5,4289.9,1.315]
[1757087453558,0.477,4290.5,4289.8,1.558]
[1757087453559,1.1941,4290.4,4289.8,1.558]
[1757087453767,1.1941,4290.4,4289.8,1.315]
[1757087454153,4.4019,4290.1,4289.6,1.315]
[1757087454464,3.4508,4290.1,4289.5,0.4972]
[1757087454661,3.4508,4290.1,4289.0,3.948]
[1757087454662,3.2078,4289.6,4289.1,1.315]
[1757087454857,1.4614,4289.5,4289.0,4.5228]
[1757087455064,1.1941,4289.4,4289.1,1.315]
[1757087455258,0.243,4289.3,4289.1,1.315]
[1757087455562,0.243,4289.3,4289.0,3.2078]
[1757087455763,0.243,4289.3,4289.2,1.315]
[1757087456264,1.4371,4289.5,4289.0,3.705]
[1757087456666,1.1941,4289.4,4289.2,1.315]
[1757087456867,1.1941,4289.4,4289.0,5.02]
[1757087457067,1.1941,4289.4,4289.0,3.705]
[1757087457367,0.243,4289.5,4289.1,1.315]
[1757087457565,1.4371,4289.5,4289.3,1.315]
[1757087457768,1.1941,4289.4,4289.3,1.315]
[1757087458666,1.1941,4289.4,4288.5,0.4972]
[1757087458969,0.243,4289.3,4288.6,1.315]
[1757087459470,0.243,4289.4,4289.1,1.315]
[1757087459768,1.0968,4289.4,4289.3,0.8098]
[1757087459956,1.9067,4289.4,4289.3,2.1248]
[1757087460155,1.6637,4289.4,4289.3,2.1248]
[1757087460362,3.2078,4289.5,4289.4,1.315]
[1757087460569,3.2078,4289.5,4289.4,2.9675]
[1757087460865,3.4508,4290.1,4290.0,0.4972]
[1757087461074,4.3046,4290.1,4290.0,0.8098]
[1757087461365,0.8538,4290.1,4290.0,3.4647]
[1757087461563,3.2078,4290.6,4290.5,1.8122]
[1757087462566,0.243,4291.6,4290.5,7.93807]
[1757087462765,3.2078,4291.2,4290.6,1.315]
[1757087464265,1.4371,4291.4,4290.6,1.315]
[1757087465165,0.243,4291.4,4290.6,1.315]
[1757087467068,0.243,4291.4,4291.0,0.4972]
[1757087467268,1.0968,4291.4,4291.3,0.8098]
[1757087467472,1.9067,4291.4,4291.3,2.1248]
[1757087467977,3.1008,4291.4,4291.3,2.1248]
[1757087468174,1.9067,4291.4,4291.3,2.1248]
[1757087468768,7.1008,4291.4,4291.3,0.32177601]
[1757087468967,7.69103009,4291.4,4291.3,0.32177601]
[1757087469766,0.8538,4290.3,4290.2,2.3678]
[1757087469975,2.7913,4290.3,4290.2,1.315]
[1757087470166,1.6637,4290.3,4290.2,2.1248]
[1757087470471,2.25591689,4290.3,4290.2,2.1248]
[1757087471072,1.44601689,4290.3,4290.2,2.9675]
[1757087471576,0.59221689,4290.3,4290.2,2.9675]
[1757087471768,2.25591689,4290.3,4290.2,2.1248]
[1757087471965,0.59221689,4290.3,4290.2,2.9675]
[1757087473176,2.25591689,4290.3,4290.2,2.9675]
[1757087473670,2.25591689,4290.3,4289.7,1.315]
[1757087473864,1.6637,4289.6,4289.5,2.1497]
[1757087474065,2.25591689,4289.6,4289.5,2.1497]
[1757087474372,1.1276,4289.5,4289.1,0.243]
[1757087474574,0.8538,4289.2,4289.1,3.2105]
[1757087474776,2.25591689,4289.2,4289.1,2.9675]
[1757087475772,3.38351689,4289.2,4288.6,1.558]
[1757087475975,1.6637,4288.7,4288.6,1.0528]
[1757087476177,2.25591689,4288.7,4288.6,1.8955]
[1757087476371,1.44601689,4288.7,4288.6,1.8955]
[1757087476573,1.44601689,4288.7,4288.6,3.2105]
[1757087477382,0.59221689,4288.7,4288.6,3.2105]
[1757087477674,1.44673093,4289.0,4288.9,2.9675]
[1757087477870,0.59293093,4289.0,4288.6,1.315]
[1757087478070,2.7913,4288.7,4288.6,1.315]
[1757087478364,2.7913,4288.7,4288.0,0.4972]
[1757087478365,3.38423093,4288.7,4288.0,0.7402]
[1757087478678,4.0347,4288.4,4288.3,2.8998]
[1757087478878,4.62763093,4288.4,4288.3,2.8998]
[1757087480276,6.56363093,4288.4,4288.3,2.0694]
[1757087480667,6.56363093,4288.4,4288.3,1.2799]
[1757087481070,5.47813093,4288.4,4288.3,2.0694]
[1757087481482,6.56363093,4288.4,4288.3,2.0694]
[1757087481675,5.47813093,4288.4,4288.3,2.8998]
[1757087481880,4.62763093,4288.4,4288.3,3.21713005]
[1757087482783,5.47813093,4288.4,4288.3,3.21713005]
[1757087484575,6.56363093,4288.4,4288.3,2.38673005]
[1757087485179,4.62763093,4288.4,4288.3,3.21713005]
[1757087485392,3.80073093,4288.4,4288.3,3.21713005]
[1757087485685,4.62763093,4288.4,4288.3,3.21713005]
[1757087486181,3.80073093,4288.4,4288.3,3.21713005]
[1757087486683,5.47813093,4288.4,4288.3,3.21693398]
[1757087488281,4.8852,4288.4,4288.3,3.21693398]
[1757087491579,5.9589,4288.4,4288.3,1.59703398]
[1757087491785,5.9589,4288.4,4288.3,0.31713398]
[1757087491984,5.9589,4288.4,4288.3,2.38653398]
[1757087492187,6.2019,4288.4,4288.3,2.38653398]
[1757087492780,6.2019,4288.4,4288.3,1.59703398]
[1757087493181,6.2019,4288.4,4288.3,2.38653398]
[1757087493786,6.2019,4288.4,4288.3,2.0694]
[1757087493985,6.2019,4288.4,4288.3,2.38709629]
[1757087494384,6.2019,4288.4,4288.3,0.31769629]
[1757087495188,6.2019,4288.4,4288.3,1.59759629]
[1757087495491,6.2019,4288.4,4288.3,2.38709629]
[1757087495492,5.1282,4288.4,4288.3,2.38709629]
[1757087496490,5.1282,4288.4,4288.3,3.21749629]
[1757087497590,5.1282,4288.4,4288.3,3.21800494]
[1757087498390,4.8852,4288.4,4288.3,3.21800494]
[1757087498595,5.1282,4288.4,4288.3,3.21800494]
[1757087499388,4.0347,4288.4,4288.3,3.21800494]
[1757087499690,0.479,4289.5,4289.0,2.8998]
[1757087499886,1.2945,4289.4,4289.3,2.8998]
[1757087500090,3.4534,4290.0,4289.9,0.7895]
[1757087500387,3.4534,4290.0,4289.9,0.31820494]
[1757087500793,3.4534,4290.0,4289.9,3.21800494]
[1757087501294,3.4534,4290.0,4289.9,1.93810494]
[1757087501489,3.2104,4290.0,4289.9,1.10770494]
[1757087501695,3.4534,4290.0,4289.9,0.31820494]
[1757087502596,1.6774,4288.7,4288.6,1.0325]
[1757087502794,2.9719,4288.7,4288.6,1.8629]
[1757087503700,2.9719,4288.7,4288.6,3.1428]
[1757087503991,1.5375,4289.2,4288.7,1.2799]
[1757087504196,3.2149,4289.2,4289.1,1.6199]
[1757087504394,3.2149,4289.2,4288.6,0.243]
[1757087504610,1.6774,4288.7,4288.6,0.7895]